[Event "*** Titled Tuesday Blitz"]
[Site "Chess.com"]
[Date "2019.04.02"]
[Round "2"]
[White "WPWPWP-2015"]
[Black "alturas_pacificas"]
[Result "0-1"]
[WhiteElo "2376"]
[BlackElo "2277"]
[TimeControl "180+2"]
[EndTime "14:23:46 PDT"]
[Termination "alturas_pacificas won by checkmate"]

1. e4 {[%clk 0:02:59.7]} 1... e5 {[%clk 0:03:00.6]} 2. Nf3 {[%clk 0:02:59.9]}
2... Nf6 {[%clk 0:03:02]} 3. Nxe5 {[%clk 0:02:59.7]} 3... d6 {[%clk 0:03:02.7]}
4. Nf3 {[%clk 0:02:57.8]} 4... Nxe4 {[%clk 0:03:03.7]} 5. Bd3 {[%clk 0:02:58.1]}
5... Nc5 {[%clk 0:03:00.6]} 6. Be2 {[%clk 0:02:58.1]} 6... Be7 {[%clk
0:02:57.1]} 7. d4 {[%clk 0:02:58.4]} 7... Ne4 {[%clk 0:02:56.9]} 8. d5 {[%clk
0:02:46.9]} 8... O-O {[%clk 0:02:52.6]} 9. O-O {[%clk 0:02:46.5]} 9... a5 {[%clk
0:02:20.3]} 10. c4 {[%clk 0:02:44.2]} 10... Bf6 {[%clk 0:02:16.9]} 11. Nbd2
{[%clk 0:02:39.7]} 11... Nxd2 {[%clk 0:02:16.6]} 12. Nxd2 {[%clk 0:02:39.6]}
12... Na6 {[%clk 0:02:15.9]} 13. Ne4 {[%clk 0:02:39.2]} 13... Nc5 {[%clk
0:02:12.8]} 14. a4 {[%clk 0:02:25.2]} 14... Nxe4 {[%clk 0:02:12.6]} 15. Ra3
{[%clk 0:02:19.8]} 15... Bf5 {[%clk 0:02:06]} 16. g4 {[%clk 0:02:10.6]} 16...
Bg6 {[%clk 0:02:05.8]} 17. f4 {[%clk 0:02:11.8]} 17... h6 {[%clk 0:01:39.8]} 18.
Bf3 {[%clk 0:01:43.4]} 18... Nc5 {[%clk 0:01:38.7]} 19. Be3 {[%clk 0:01:31.7]}
19... Be4 {[%clk 0:01:32.5]} 20. Be2 {[%clk 0:01:32.4]} 20... Re8 {[%clk
0:01:29.1]} 21. Qd2 {[%clk 0:01:27.1]} 21... b6 {[%clk 0:01:24.8]} 22. Bd1
{[%clk 0:01:14.5]} 22... Qd7 {[%clk 0:01:16.4]} 23. h3 {[%clk 0:00:37.8]} 23...
Re7 {[%clk 0:01:15.3]} 24. g5 {[%clk 0:00:25.2]} 24... hxg5 {[%clk 0:01:11.3]}
25. fxg5 {[%clk 0:00:26.5]} 25... Be5 {[%clk 0:01:11.3]} 26. Bg4 {[%clk
0:00:27.1]} 26... Qe8 {[%clk 0:01:03.5]} 27. Qf2 {[%clk 0:00:26.2]} 27... Bg6
{[%clk 0:00:50.6]} 28. h4 {[%clk 0:00:17.6]} 28... Bxb2 {[%clk 0:00:46.6]} 29.
Qxb2 {[%clk 0:00:17.4]} 29... Rxe3 {[%clk 0:00:47.4]} 30. h5 {[%clk 0:00:18.7]}
30... Rxa3 {[%clk 0:00:42.7]} 31. Qxa3 {[%clk 0:00:08.9]} 31... Bd3 {[%clk
0:00:42.9]} 32. Rf3 {[%clk 0:00:06.9]} 32... Qe1+ {[%clk 0:00:41.4]} 33. Kh2
{[%clk 0:00:04.3]} 33... Re8 {[%clk 0:00:29.4]} 34. Rxd3 {[%clk 0:00:03.8]}
34... Re2+ {[%clk 0:00:20]} 35. Bxe2 {[%clk 0:00:02.9]} 35... Qxe2+ {[%clk
0:00:21.4]} 36. Kg3 {[%clk 0:00:03.5]} 36... Qxd3+ {[%clk 0:00:22.7]} 37. Qxd3
{[%clk 0:00:04.6]} 37... Nxd3 {[%clk 0:00:24.2]} 38. Kg4 {[%clk 0:00:05]} 38...
Nb2 {[%clk 0:00:25.2]} 39. g6 {[%clk 0:00:04.2]} 39... fxg6 {[%clk 0:00:25.7]}
40. hxg6 {[%clk 0:00:05.6]} 40... Nxa4 {[%clk 0:00:26.4]} 41. Kf5 {[%clk
0:00:07.2]} 41... Nb2 {[%clk 0:00:26.5]} 42. Ke6 {[%clk 0:00:08.1]} 42... Nxc4
{[%clk 0:00:27.5]} 43. Kd7 {[%clk 0:00:09.6]} 43... Ne3 {[%clk 0:00:27.1]} 44.
Kc6 {[%clk 0:00:09.5]} 44... Nxd5 {[%clk 0:00:27.6]} 45. Kxd5 {[%clk 0:00:10.8]}
45... a4 {[%clk 0:00:28.6]} 46. Kc4 {[%clk 0:00:12.2]} 46... b5+ {[%clk
0:00:29.4]} 47. Kb4 {[%clk 0:00:13.2]} 47... c5+ {[%clk 0:00:29.9]} 48. Ka3
{[%clk 0:00:14.2]} 48... Kf8 {[%clk 0:00:30.9]} 49. Kb2 {[%clk 0:00:15.6]} 49...
Ke7 {[%clk 0:00:32.2]} 50. Ka3 {[%clk 0:00:17.2]} 50... Kf6 {[%clk 0:00:33.7]}
51. Kb2 {[%clk 0:00:18.9]} 51... Kxg6 {[%clk 0:00:35.2]} 52. Kc3 {[%clk
0:00:20.6]} 52... Kf5 {[%clk 0:00:36.6]} 53. Kb2 {[%clk 0:00:22.5]} 53... b4
{[%clk 0:00:37.5]} 54. Ka2 {[%clk 0:00:23.6]} 54... c4 {[%clk 0:00:38.6]} 55.
Kb2 {[%clk 0:00:25.3]} 55... d5 {[%clk 0:00:40.1]} 56. Ka2 {[%clk 0:00:27]}
56... d4 {[%clk 0:00:41.6]} 57. Kb2 {[%clk 0:00:28.7]} 57... g5 {[%clk
0:00:42.9]} 58. Ka2 {[%clk 0:00:30.4]} 58... g4 {[%clk 0:00:44.5]} 59. Kb1
{[%clk 0:00:32.2]} 59... g3 {[%clk 0:00:46]} 60. Kb2 {[%clk 0:00:33.8]} 60... d3
{[%clk 0:00:46.9]} 61. Ka1 {[%clk 0:00:35.7]} 61... c3 {[%clk 0:00:47.6]} 62.
Ka2 {[%clk 0:00:36.6]} 62... Ke4 {[%clk 0:00:46.5]} 63. Ka1 {[%clk 0:00:38]}
63... Kd4 {[%clk 0:00:46.5]} 64. Ka2 {[%clk 0:00:39.3]} 64... Kc4 {[%clk
0:00:46.4]} 65. Kb1 {[%clk 0:00:40.6]} 65... Kb3 {[%clk 0:00:46.3]} 66. Ka1
{[%clk 0:00:42.1]} 66... g2 {[%clk 0:00:42.4]} 67. Kb1 {[%clk 0:00:43.4]} 67...
g1=Q# {[%clk 0:00:40.7]} 0-1

[Event "*** Titled Tuesday Blitz"]
[Site "Chess.com"]
[Date "2019.04.02"]
[Round "2"]
[White "fmshawnrl123"]
[Black "chessdjw"]
[Result "0-1"]
[WhiteElo "2552"]
[BlackElo "2632"]
[TimeControl "180+2"]
[EndTime "14:23:51 PDT"]
[Termination "chessdjw won by resignation"]

1. a4 {[%clk 0:03:01.9]} 1... g6 {[%clk 0:03:01.9]} 2. Na3 {[%clk 0:03:02.4]}
2... Bg7 {[%clk 0:03:03.8]} 3. h4 {[%clk 0:03:02.4]} 3... d6 {[%clk 0:03:05.7]}
4. h5 {[%clk 0:03:02.8]} 4... c5 {[%clk 0:03:04.9]} 5. d3 {[%clk 0:03:02.7]}
5... Nc6 {[%clk 0:03:06]} 6. h6 {[%clk 0:03:03.6]} 6... Bf6 {[%clk 0:03:05.2]}
7. e4 {[%clk 0:03:04.8]} 7... e5 {[%clk 0:03:04.8]} 8. Nc4 {[%clk 0:03:05]} 8...
Be6 {[%clk 0:03:03.6]} 9. Nf3 {[%clk 0:03:04.7]} 9... d5 {[%clk 0:02:50.8]} 10.
exd5 {[%clk 0:03:04.2]} 10... Bxd5 {[%clk 0:02:50.9]} 11. Ne3 {[%clk 0:03:03.9]}
11... Be6 {[%clk 0:02:50.8]} 12. Nd2 {[%clk 0:03:04.2]} 12... Be7 {[%clk
0:02:49.2]} 13. g4 {[%clk 0:03:04.9]} 13... Qd7 {[%clk 0:02:43.9]} 14. Bg2
{[%clk 0:03:03.5]} 14... Nf6 {[%clk 0:02:40.1]} 15. g5 {[%clk 0:03:00.4]} 15...
Nd5 {[%clk 0:02:41.1]} 16. Nxd5 {[%clk 0:02:59]} 16... Bxd5 {[%clk 0:02:43]} 17.
Ne4 {[%clk 0:03:00.2]} 17... O-O-O {[%clk 0:02:34.9]} 18. Be3 {[%clk 0:02:59.7]}
18... Nd4 {[%clk 0:02:27.8]} 19. c4 {[%clk 0:02:47]} 19... Be6 {[%clk
0:02:24.8]} 20. Bxd4 {[%clk 0:02:28.3]} 20... Qxd4 {[%clk 0:02:22.9]} 21. Qb3
{[%clk 0:02:28.5]} 21... Rd7 {[%clk 0:02:02.4]} 22. O-O-O {[%clk 0:02:25.8]}
22... Rhd8 {[%clk 0:02:02.5]} 23. Rhe1 {[%clk 0:02:22]} 23... Bxg5+ {[%clk
0:01:57.1]} 24. Nxg5 {[%clk 0:02:16.2]} 24... Qf4+ {[%clk 0:01:58.1]} 25. Kb1
{[%clk 0:02:16.8]} 25... Qxg5 {[%clk 0:01:59.1]} 26. Be4 {[%clk 0:02:16.2]}
26... Qxh6 {[%clk 0:01:56.4]} 27. Qb5 {[%clk 0:02:16.7]} 27... Qf8 {[%clk
0:01:53]} 28. a5 {[%clk 0:02:11.3]} 28... Qd6 {[%clk 0:01:51.4]} 29. a6 {[%clk
0:02:02.4]} 29... bxa6 {[%clk 0:01:43]} 30. Qa4 {[%clk 0:02:01.5]} 30... Qb6
{[%clk 0:01:40.3]} 31. Kc2 {[%clk 0:01:52.5]} 31... Kc7 {[%clk 0:01:40.4]} 32.
Ra1 {[%clk 0:01:49.5]} 32... f5 {[%clk 0:01:36.2]} 33. Qc6+ {[%clk 0:01:36.6]}
33... Qxc6 {[%clk 0:01:34.3]} 34. Bxc6 {[%clk 0:01:38.5]} 34... Rxd3 {[%clk
0:01:31.7]} 35. Bd5 {[%clk 0:01:35.5]} 35... Bxd5 {[%clk 0:00:58.9]} 36. Kxd3
{[%clk 0:01:34.8]} 36... Be4+ {[%clk 0:00:59.8]} 37. Ke3 {[%clk 0:01:31.8]}
37... Rd3+ {[%clk 0:00:55.5]} 38. Ke2 {[%clk 0:01:32.3]} 38... Kb6 {[%clk
0:00:53.9]} 39. Ra3 {[%clk 0:01:28.3]} 39... Rd4 {[%clk 0:00:31.2]} 40. Rb3+
{[%clk 0:01:27.8]} 40... Kc7 {[%clk 0:00:31.4]} 41. f3 {[%clk 0:01:27.4]} 41...
Bb7 {[%clk 0:00:32]} 42. Rh1 {[%clk 0:01:26.2]} 42... h5 {[%clk 0:00:26.8]} 43.
Rg1 {[%clk 0:01:26.9]} 43... Rd6 {[%clk 0:00:22.9]} 44. Rd3 {[%clk 0:01:26.7]}
44... Re6 {[%clk 0:00:14.5]} 45. Rgd1 {[%clk 0:01:23.5]} 45... Bc6 {[%clk
0:00:13.5]} 46. Rd8 {[%clk 0:01:23.2]} 46... h4 {[%clk 0:00:13.4]} 47. Rh8
{[%clk 0:01:23.5]} 47... g5 {[%clk 0:00:14.5]} 48. Rh7+ {[%clk 0:01:21.7]} 48...
Kb6 {[%clk 0:00:15]} 49. Rd8 {[%clk 0:01:21.7]} 49... e4 {[%clk 0:00:15.2]} 50.
Rb8+ {[%clk 0:01:20.1]} 50... Ka5 {[%clk 0:00:16.3]} 51. f4 {[%clk 0:01:18.8]}
51... gxf4 {[%clk 0:00:16.5]} 52. Rxh4 {[%clk 0:01:19.7]} 52... f3+ {[%clk
0:00:17.7]} 53. Ke3 {[%clk 0:01:20.8]} 53... Rd6 {[%clk 0:00:18.6]} 54. Rh1
{[%clk 0:01:16.9]} 54... Rd3+ {[%clk 0:00:19.5]} 55. Kf4 {[%clk 0:01:17.9]}
55... f2 {[%clk 0:00:21]} 56. Ra1+ {[%clk 0:01:18.6]} 56... Ba4 {[%clk 0:00:21]}
57. b3 {[%clk 0:01:15.6]} 57... Rxb3 {[%clk 0:00:16.7]} 58. Rxb3 {[%clk
0:01:17.5]} 58... f1=Q+ {[%clk 0:00:17.8]} 59. Rxf1 {[%clk 0:01:17.6]} 59...
Bxb3 {[%clk 0:00:19.7]} 60. Kxf5 {[%clk 0:01:11]} 60... Bxc4 {[%clk 0:00:20.7]}
61. Ra1+ {[%clk 0:01:10.5]} 61... Kb4 {[%clk 0:00:22.1]} 62. Kxe4 {[%clk
0:01:12.4]} 62... a5 {[%clk 0:00:23.7]} 63. Rb1+ {[%clk 0:01:10.5]} 63... Bb3
{[%clk 0:00:24.4]} 64. Kd3 {[%clk 0:01:09.9]} 64... a4 {[%clk 0:00:25.5]} 65.
Rh1 {[%clk 0:01:07.5]} 65... a3 {[%clk 0:00:26.1]} 66. Rh4+ {[%clk 0:01:07.5]}
66... c4+ {[%clk 0:00:26.9]} 67. Rxc4+ {[%clk 0:01:05.9]} 67... Bxc4+ {[%clk
0:00:26.5]} 68. Kc2 {[%clk 0:01:07]} 68... Ba2 {[%clk 0:00:28]} 0-1

[Event "*** Titled Tuesday Blitz"]
[Site "Chess.com"]
[Date "2019.04.02"]
[Round "2"]
[White "TomsKantans"]
[Black "MITerryble"]
[Result "1-0"]
[WhiteElo "2642"]
[BlackElo "2829"]
[TimeControl "180+2"]
[EndTime "14:23:53 PDT"]
[Termination "TomsKantans won by resignation"]

1. e4 {[%clk 0:02:58.4]} 1... e6 {[%clk 0:03:00.8]} 2. c4 {[%clk 0:02:53.8]}
2... d5 {[%clk 0:02:58.8]} 3. cxd5 {[%clk 0:02:55.7]} 3... exd5 {[%clk
0:03:00.7]} 4. exd5 {[%clk 0:02:56.8]} 4... Nf6 {[%clk 0:03:01.8]} 5. Nc3 {[%clk
0:02:57.9]} 5... Nxd5 {[%clk 0:03:02.3]} 6. Nf3 {[%clk 0:02:59]} 6... Be7 {[%clk
0:03:01.6]} 7. d4 {[%clk 0:02:59.9]} 7... O-O {[%clk 0:03:02.2]} 8. Bd3 {[%clk
0:03:01]} 8... Bg4 {[%clk 0:03:00.6]} 9. O-O {[%clk 0:03:00.3]} 9... Nc6 {[%clk
0:03:00.6]} 10. h3 {[%clk 0:03:00.6]} 10... Bh5 {[%clk 0:03:01.3]} 11. Bxh7+
{[%clk 0:03:00]} 11... Kxh7 {[%clk 0:02:54]} 12. Ng5+ {[%clk 0:03:00.6]} 12...
Kg6 {[%clk 0:02:31.2]} 13. Qd3+ {[%clk 0:02:59.4]} 13... f5 {[%clk 0:02:31.7]}
14. Ne6 {[%clk 0:02:54.1]} 14... Nxc3 {[%clk 0:02:26.7]} 15. Nxd8 {[%clk
0:02:50]} 15... Ne2+ {[%clk 0:02:26.2]} 16. Kh1 {[%clk 0:02:42.5]} 16... Raxd8
{[%clk 0:02:27.5]} 17. g4 {[%clk 0:02:36.4]} 17... Bxg4 {[%clk 0:02:26.8]} 18.
hxg4 {[%clk 0:02:36.8]} 18... Ncxd4 {[%clk 0:02:26]} 19. Re1 {[%clk 0:01:54.6]}
19... Nxc1 {[%clk 0:01:19.1]} 20. Raxc1 {[%clk 0:01:36.7]} 20... Bf6 {[%clk
0:01:20.2]} 21. gxf5+ {[%clk 0:01:34.5]} 21... Nxf5 {[%clk 0:01:21]} 22. Rg1+
{[%clk 0:01:00.7]} 22... Bg5 {[%clk 0:01:22.2]} 23. Qe4 {[%clk 0:00:26.8]} 23...
Rh8+ {[%clk 0:01:11.1]} 24. Kg2 {[%clk 0:00:27.7]} 24... Rde8 {[%clk 0:01:12.7]}
25. Qxb7 {[%clk 0:00:14.2]} 25... Bxc1 {[%clk 0:00:57.5]} 26. Rxc1 {[%clk
0:00:16]} 26... Re6 {[%clk 0:00:44.4]} 27. Rxc7 {[%clk 0:00:12.1]} 27... Kh5
{[%clk 0:00:37.2]} 28. Rc6 {[%clk 0:00:10.4]} 28... Nh4+ {[%clk 0:00:31.5]} 29.
Kf1 {[%clk 0:00:11]} 29... Rxc6 {[%clk 0:00:09.8]} 30. Qxc6 {[%clk 0:00:12.8]}
30... g5 {[%clk 0:00:11.7]} 31. b4 {[%clk 0:00:12]} 31... Kg4 {[%clk 0:00:12]}
32. Qe4+ {[%clk 0:00:11.7]} 32... Kh5 {[%clk 0:00:12.8]} 33. b5 {[%clk
0:00:13.5]} 33... Rf8 {[%clk 0:00:13.4]} 34. a4 {[%clk 0:00:13.9]} 34... Rf4
{[%clk 0:00:14.3]} 35. Qh7+ {[%clk 0:00:14.3]} 35... Kg4 {[%clk 0:00:15.4]} 36.
Qd7+ {[%clk 0:00:16.2]} 36... Nf5 {[%clk 0:00:16.6]} 37. a5 {[%clk 0:00:16.7]}
37... Rb4 {[%clk 0:00:16.2]} 38. b6 {[%clk 0:00:13.3]} 38... axb6 {[%clk
0:00:18]} 39. a6 {[%clk 0:00:15.2]} 39... Rb1+ {[%clk 0:00:17.5]} 40. Kg2 {[%clk
0:00:16.3]} 40... Ra1 {[%clk 0:00:19.4]} 41. Qc8 {[%clk 0:00:12.1]} 41... b5
{[%clk 0:00:16.8]} 42. f3+ {[%clk 0:00:08.9]} 42... Kf4 {[%clk 0:00:17.7]} 43.
Qc7+ {[%clk 0:00:09.9]} 43... Ke3 {[%clk 0:00:17.3]} 44. Qe5+ {[%clk 0:00:11.2]}
44... Kd2 {[%clk 0:00:18.6]} 45. Qxf5 {[%clk 0:00:12]} 45... Rxa6 {[%clk
0:00:20.5]} 46. Qxg5+ {[%clk 0:00:12.9]} 46... Kc3 {[%clk 0:00:18.3]} 47. Qxb5
{[%clk 0:00:14]} 47... Ra2+ {[%clk 0:00:20.2]} 48. Kg3 {[%clk 0:00:15]} 48...
Kd4 {[%clk 0:00:20.4]} 49. f4 {[%clk 0:00:15.6]} 49... Rb2 {[%clk 0:00:21]} 50.
Qe5+ {[%clk 0:00:16.2]} 50... Kd3 {[%clk 0:00:21.7]} 51. Qxb2 {[%clk 0:00:17]}
1-0

[Event "*** Titled Tuesday Blitz"]
[Site "Chess.com"]
[Date "2019.04.02"]
[Round "2"]
[White "Fighterman91"]
[Black "jefferyx"]
[Result "0-1"]
[WhiteElo "2577"]
[BlackElo "2860"]
[TimeControl "180+2"]
[EndTime "14:23:54 PDT"]
[Termination "jefferyx won by resignation"]

1. d4 {[%clk 0:03:01.9]} 1... Nf6 {[%clk 0:03:01.2]} 2. Bf4 {[%clk 0:03:02.9]}
2... d5 {[%clk 0:03:01.4]} 3. Nc3 {[%clk 0:03:01.1]} 3... e6 {[%clk 0:02:56.1]}
4. e3 {[%clk 0:03:00.3]} 4... Bb4 {[%clk 0:02:35]} 5. Bd3 {[%clk 0:02:59.5]}
5... c5 {[%clk 0:02:33.3]} 6. dxc5 {[%clk 0:03:00.1]} 6... Nbd7 {[%clk
0:02:34.3]} 7. Ne2 {[%clk 0:02:56]} 7... Nxc5 {[%clk 0:02:22.8]} 8. O-O {[%clk
0:02:56.2]} 8... Bd7 {[%clk 0:02:23.2]} 9. a3 {[%clk 0:02:55.4]} 9... Bxc3
{[%clk 0:02:23.8]} 10. Nxc3 {[%clk 0:02:56.5]} 10... Rc8 {[%clk 0:02:15.6]} 11.
Bg5 {[%clk 0:02:50.7]} 11... h6 {[%clk 0:02:16]} 12. Bh4 {[%clk 0:02:51.6]}
12... O-O {[%clk 0:02:13]} 13. Qf3 {[%clk 0:02:32.9]} 13... Bc6 {[%clk
0:02:13.7]} 14. Qg3 {[%clk 0:02:09.2]} 14... Ncd7 {[%clk 0:02:08]} 15. Ne2
{[%clk 0:01:45.6]} 15... Qc7 {[%clk 0:02:01.4]} 16. Qxc7 {[%clk 0:01:45]} 16...
Rxc7 {[%clk 0:02:03.3]} 17. Bg3 {[%clk 0:01:46.4]} 17... e5 {[%clk 0:01:59.6]}
18. Bf5 {[%clk 0:01:38.2]} 18... Bb5 {[%clk 0:01:50.1]} 19. Rfe1 {[%clk
0:01:38.7]} 19... g6 {[%clk 0:01:49]} 20. Bxd7 {[%clk 0:01:33.6]} 20... Nxd7
{[%clk 0:01:50.9]} 21. Nc3 {[%clk 0:01:32.5]} 21... Bc4 {[%clk 0:01:22.3]} 22.
Rad1 {[%clk 0:01:27]} 22... f5 {[%clk 0:01:23.5]} 23. f4 {[%clk 0:00:55.3]}
23... e4 {[%clk 0:01:24.5]} 24. Nxd5 {[%clk 0:00:51]} 24... Bxd5 {[%clk
0:01:26.4]} 25. Rxd5 {[%clk 0:00:52.3]} 25... Nb6 {[%clk 0:01:28.3]} 26. Rd6
{[%clk 0:00:49.2]} 26... Kf7 {[%clk 0:01:21.2]} 27. Red1 {[%clk 0:00:45.6]}
27... Rxc2 {[%clk 0:01:21.5]} 28. Bh4 {[%clk 0:00:37.9]} 28... Kg7 {[%clk
0:00:58.5]} 29. Re6 {[%clk 0:00:29.1]} 29... Rc6 {[%clk 0:00:42.6]} 30. Rxc6
{[%clk 0:00:27.9]} 30... bxc6 {[%clk 0:00:44.5]} 31. Be7 {[%clk 0:00:15.8]}
31... Rc8 {[%clk 0:00:41.3]} 32. Bc5 {[%clk 0:00:17]} 32... Nd5 {[%clk
0:00:42.1]} 33. b4 {[%clk 0:00:15.5]} 33... a6 {[%clk 0:00:42.9]} 34. Kf2 {[%clk
0:00:16.8]} 34... Kf7 {[%clk 0:00:44]} 35. Rc1 {[%clk 0:00:17.1]} 35... Ke6
{[%clk 0:00:45]} 36. Bd4 {[%clk 0:00:18.5]} 36... Kd7 {[%clk 0:00:45.7]} 37. Rc5
{[%clk 0:00:19.9]} 37... Ra8 {[%clk 0:00:46.7]} 38. h3 {[%clk 0:00:20.9]} 38...
h5 {[%clk 0:00:46.8]} 39. Kg3 {[%clk 0:00:21.1]} 39... Nc7 {[%clk 0:00:45.2]}
40. Ra5 {[%clk 0:00:12.5]} 40... Nb5 {[%clk 0:00:42.9]} 41. Bc5 {[%clk
0:00:12.4]} 41... Nc7 {[%clk 0:00:27.6]} 42. Bd4 {[%clk 0:00:11]} 42... Nb5
{[%clk 0:00:28.8]} 43. Be5 {[%clk 0:00:09.9]} 43... c5 {[%clk 0:00:20.6]} 44. a4
{[%clk 0:00:08.6]} 44... Na7 {[%clk 0:00:21.7]} 45. Rxc5 {[%clk 0:00:09.3]}
45... Nc6 {[%clk 0:00:23.2]} 46. Rd5+ {[%clk 0:00:08.9]} 46... Ke7 {[%clk
0:00:24.5]} 47. Bc3 {[%clk 0:00:09.3]} 47... Ke6 {[%clk 0:00:24]} 48. Rc5 {[%clk
0:00:10.8]} 48... Kd6 {[%clk 0:00:25.5]} 49. Be5+ {[%clk 0:00:11.3]} 49... Kd7
{[%clk 0:00:25.6]} 50. Rd5+ {[%clk 0:00:12.4]} 50... Ke7 {[%clk 0:00:26.2]} 51.
b5 {[%clk 0:00:10.3]} 51... axb5 {[%clk 0:00:28.1]} 52. axb5 {[%clk 0:00:11.6]}
52... Nb4 {[%clk 0:00:29.8]} 53. Rd6 {[%clk 0:00:12.5]} 53... Ra3 {[%clk
0:00:29.9]} 54. Rxg6 {[%clk 0:00:11.2]} 54... Rxe3+ {[%clk 0:00:31.4]} 55. Kh4
{[%clk 0:00:11.3]} 55... Nd3 {[%clk 0:00:31.2]} 56. Kg5 {[%clk 0:00:11.9]} 56...
Nxe5 {[%clk 0:00:28]} 57. Rh6 {[%clk 0:00:04.5]} 57... Nf7+ {[%clk 0:00:28.9]}
0-1

[Event "*** Titled Tuesday Blitz"]
[Site "Chess.com"]
[Date "2019.04.02"]
[Round "2"]
[White "sere99"]
[Black "dopolian"]
[Result "1-0"]
[WhiteElo "2269"]
[BlackElo "2194"]
[TimeControl "180+2"]
[EndTime "14:23:55 PDT"]
[Termination "sere99 won by resignation"]

1. d4 {[%clk 0:03:01.8]} 1... Nf6 {[%clk 0:03:00.8]} 2. c4 {[%clk 0:02:48.9]}
2... c5 {[%clk 0:03:01.4]} 3. d5 {[%clk 0:02:47.6]} 3... e6 {[%clk 0:03:02.4]}
4. Nc3 {[%clk 0:02:46.5]} 4... exd5 {[%clk 0:03:03.3]} 5. cxd5 {[%clk
0:02:47.4]} 5... d6 {[%clk 0:03:04.9]} 6. Nf3 {[%clk 0:02:48.1]} 6... g6 {[%clk
0:03:05.7]} 7. Bf4 {[%clk 0:02:49.5]} 7... Bg7 {[%clk 0:03:06.1]} 8. Qa4+ {[%clk
0:02:44]} 8... Bd7 {[%clk 0:03:07.3]} 9. Qb3 {[%clk 0:02:44.7]} 9... b5 {[%clk
0:03:08.5]} 10. Nxb5 {[%clk 0:02:41.2]} 10... Bxb5 {[%clk 0:03:06.7]} 11. Qxb5+
{[%clk 0:02:43.1]} 11... Nbd7 {[%clk 0:03:08]} 12. Bxd6 {[%clk 0:02:37.2]} 12...
Ne4 {[%clk 0:03:08.7]} 13. Bf4 {[%clk 0:02:33.1]} 13... O-O {[%clk 0:03:06.4]}
14. e3 {[%clk 0:02:28.7]} 14... g5 {[%clk 0:02:50]} 15. Bg3 {[%clk 0:02:16.4]}
15... Nxg3 {[%clk 0:02:39.5]} 16. hxg3 {[%clk 0:02:18.3]} 16... Rb8 {[%clk
0:02:40.4]} 17. Qd3 {[%clk 0:02:08]} 17... h6 {[%clk 0:02:41.5]} 18. Be2 {[%clk
0:02:07.4]} 18... c4 {[%clk 0:02:26.7]} 19. Qxc4 {[%clk 0:02:02.6]} 19... Qa5+
{[%clk 0:02:08.9]} 20. Kf1 {[%clk 0:02:02.5]} 20... Rxb2 {[%clk 0:02:01.6]} 21.
Rd1 {[%clk 0:01:48.8]} 21... Qxa2 {[%clk 0:01:42.4]} 22. Qxa2 {[%clk 0:01:45.2]}
22... Rxa2 {[%clk 0:01:44.3]} 23. Nd4 {[%clk 0:01:42]} 23... Rb8 {[%clk
0:01:34.4]} 24. Bc4 {[%clk 0:01:31.9]} 24... Ra4 {[%clk 0:01:24.3]} 25. Nc6
{[%clk 0:01:24.2]} 25... Rxc4 {[%clk 0:01:15.2]} 26. Nxb8 {[%clk 0:01:23.9]}
26... Nxb8 {[%clk 0:01:17.1]} 27. Ke2 {[%clk 0:01:24.6]} 27... Rc2+ {[%clk
0:01:11.8]} 28. Kf3 {[%clk 0:01:25.6]} 28... Nd7 {[%clk 0:01:12.5]} 29. Kg4
{[%clk 0:01:27.5]} 29... Rxf2 {[%clk 0:01:07.5]} 30. Rc1 {[%clk 0:01:17.3]}
30... f5+ {[%clk 0:00:50.2]} 31. Kh3 {[%clk 0:01:17.4]} 31... Ne5 {[%clk
0:00:33.8]} 32. Rhd1 {[%clk 0:01:03.7]} 32... g4+ {[%clk 0:00:27.2]} 33. Kh2
{[%clk 0:01:03.6]} 33... Kf7 {[%clk 0:00:13.3]} 34. d6 {[%clk 0:00:58.1]} 34...
Nd7 {[%clk 0:00:13.6]} 35. Rc7 {[%clk 0:00:48.9]} 35... Ke6 {[%clk 0:00:14.7]}
36. Rxa7 {[%clk 0:00:50.2]} 36... Be5 {[%clk 0:00:14.9]} 37. Ra8 {[%clk
0:00:48.3]} 37... h5 {[%clk 0:00:11.3]} 38. Re8+ {[%clk 0:00:47.5]} 38... Kf6
{[%clk 0:00:08.2]} 39. Rh8 {[%clk 0:00:45.6]} 39... Re2 {[%clk 0:00:05.5]} 40.
Rxh5 {[%clk 0:00:44.2]} 40... Rxe3 {[%clk 0:00:05.9]} 41. Rh7 {[%clk 0:00:45.4]}
41... Bxg3+ {[%clk 0:00:06.5]} 42. Kh1 {[%clk 0:00:45.8]} 42... Ne5 {[%clk
0:00:06.7]} 43. d7 {[%clk 0:00:44.7]} 43... Nxd7 {[%clk 0:00:07.9]} 44. Rhxd7
{[%clk 0:00:45.2]} 44... Re1+ {[%clk 0:00:09]} 45. Rxe1 {[%clk 0:00:45.9]} 45...
Bxe1 {[%clk 0:00:10.9]} 46. Kg1 {[%clk 0:00:46.6]} 46... Kg5 {[%clk 0:00:11.3]}
47. Kf1 {[%clk 0:00:47.5]} 47... Bg3 {[%clk 0:00:12.5]} 48. Ra7 {[%clk 0:00:48]}
48... f4 {[%clk 0:00:13.7]} 49. Ra5+ {[%clk 0:00:48.7]} 49... Kf6 {[%clk
0:00:14.9]} 50. Ke2 {[%clk 0:00:49.2]} 50... f3+ {[%clk 0:00:16.3]} 51. gxf3
{[%clk 0:00:50.2]} 51... gxf3+ {[%clk 0:00:18.2]} 52. Kxf3 {[%clk 0:00:52.1]}
52... Bd6 {[%clk 0:00:17.2]} 53. Ke4 {[%clk 0:00:52.4]} 53... Ke6 {[%clk
0:00:18.8]} 54. Ra6 {[%clk 0:00:52.9]} 54... Kd7 {[%clk 0:00:19.2]} 55. Kd5
{[%clk 0:00:53.9]} 55... Bc7 {[%clk 0:00:19.8]} 56. Ra7 {[%clk 0:00:53.2]} 56...
Kd8 {[%clk 0:00:12.9]} 57. Kc6 {[%clk 0:00:53.5]} 57... Bg3 {[%clk 0:00:13.5]}
58. Rd7+ {[%clk 0:00:53.6]} 58... Kc8 {[%clk 0:00:13.5]} 59. Rg7 {[%clk
0:00:54.2]} 59... Bc7 {[%clk 0:00:10]} 60. Rg8+ {[%clk 0:00:55.2]} 60... Bd8
{[%clk 0:00:11.2]} 61. Rh8 {[%clk 0:00:56.8]} 1-0